[Event "LJ Slovak Open 2022"]
[Site "Liptovsky Jan"]
[Date "2022.06.23"]
[Round "1.19"]
[White "Janouskova, Adela"]
[Black "Vilimek, Vit"]
[Result "0-1"]
[ECO "B22"]
[WhiteElo "1498"]
[BlackElo "1972"]
[Annotator "NA RC"]
[PlyCount "92"]
[EventDate "2022.06.23"]
[EventType "swiss"]
[EventCountry "SVK"]
[SourceTitle "playchess.com"]
[Source "ChessBase"]
[SourceQuality "1"]
[TimeControl "3600+30"]

1. e4 {[%emt 0:00:11]} c5 {[%emt 0:00:18]} 2. c3 {[%emt 0:01:22]} Nf6 {[%emt 0:00:04]} 3. e5 {[%emt 0:00:14]} Nd5 {[%emt 0:00:02]} 4. d4 {[%emt 0:00:38]} cxd4 {[%emt 0:00:10]} 5. cxd4 {[%emt 0:00:22]} d6 {[%emt 0:01:00]} 6. Bc4 {[%emt 0:04:06]} e6 {[%emt 0:01:47]} 7. Nf3 {[%emt 0:01:54]} Nc6 {[%emt 0:02:05]} 8. O-O {[%emt 0:02:05]} Be7 {[%emt 0:01:52]} 9. Nc3 {[%emt 0:01:47]} Nxc3 {[%emt 0:00:11]} 10. bxc3 {[%emt 0:00:05]} dxe5 {[%emt 0:00:08]} 11. dxe5 {[%emt 0:02:44]} Qa5 {[%emt 0:00:29]} 12. Qe1 {[%emt 0:03:01]} O-O {[%emt 0:00:54]} 13. Bd3 {[%emt 0:07:01]} Rd8 {[%emt 0:09:28]} 14. Qe4 {[%emt 0:06:04]} g6 {[%emt 0:00:36]} 15. Bd2 {[%emt 0:01:58]} Qd5 {[%emt 0:02:34]} 16. Qxd5 {[%emt 0:04:33]} Rxd5 {[%emt 0:00:14]} 17. Be4 {[%emt 0:01:30]} Rd8 {[%emt 0:02:29]} 18. Bf4 {[%emt 0:08:10]} Bd7 {[%emt 0:00:41]} 19. Nd4 {[%emt 0:01:51]} Rac8 {[%emt 0:04:43]} 20. Rab1 {[%emt 0:01:50]} Nxd4 {[%emt 0:21:57]} 21. cxd4 {[%emt 0:00:14]} b6 {[%emt 0:01:12]} 22. Rfc1 {[%emt 0:01:38]} Ba3 {[%emt 0:04:24]} 23. Rd1 {[%emt 0:02:03]} Ba4 {[%emt 0:02:06]} 24. Rd3 {[%emt 0:05:17]} Bc2 {[%emt 0:02:14]} 25. Rxa3 {[%emt 0:00:58]} Bxb1 {[%emt 0:00:02]} 26. Bxb1 {[%emt 0:00:15]} Rxd4 {[%emt 0:00:02]} 27. g3 {[%emt 0:02:09]} Rd1+ {[%emt 0:00:02]} 28. Kg2 {[%emt 0:00:14]} Rxb1 {[%emt 0:00:04]} 29. Rxa7 {[%emt 0:00:23]} h5 {[%emt 0:01:10]} 30. Be3 {[%emt 0:03:51]} Rb8 {[%emt 0:00:34]} 31. Ra6 {[%emt 0:02:16]} b5 {[%emt 0:01:03]} 32. Ra7 {[%emt 0:01:06]} Rb4 {[%emt 0:00:40]} 33. a3 {[%emt 0:01:28]} Re4 {[%emt 0:00:52]} 34. Bf4 {[%emt 0:00:51]} Ra4 {[%emt 0:00:46]} 35. Rxa4 {[%emt 0:00:36]} bxa4 {[%emt 0:00:01]} 36. Bd2 {[%emt 0:00:38]} Rb3 {[%emt 0:00:09]} 37. Bc1 {[%emt 0:00:34]} Rb5 {[%emt 0:00:12]} 38. f4 {[%emt 0:01:55]} Rc5 {[%emt 0:00:04]} 39. Be3 {[%emt 0:00:33]} Rc3 {[%emt 0:00:02]} 40. Bd4 {[%emt 0:00:44]} Rxa3 {[%emt 0:00:02]} 41. Bc5 {[%emt 0:00:17]} Ra2+ {[%emt 0:00:17]} 42. Kh3 {[%emt 0:00:17]} Rc2 {[%emt 0:00:17]} 43. Bb4 {[%emt 0:00:34]} Rb2 {[%emt 0:00:09]} 44. Ba3 {[%emt 0:00:45]} Rb3 {[%emt 0:00:02]} 45. Bc1 {[%emt 0:00:39]} a3 {[%emt 0:00:06]} 46. Bb2 {[%emt 0:01:04]} axb2 {[%emt 0:00:24]} 0-1

[Event "LJ Slovak Open 2022"]
[Site "Liptovsky Jan"]
[Date "2022.06.23"]
[Round "1.20"]
[White "Giertli, Vladimir"]
[Black "Bilik, Matej"]
[Result "1-0"]
[ECO "A15"]
[WhiteElo "1988"]
[BlackElo "1553"]
[Annotator "NA RC"]
[PlyCount "183"]
[EventDate "2022.06.23"]
[EventType "swiss"]
[EventCountry "SVK"]
[SourceTitle "playchess.com"]
[Source "ChessBase"]
[SourceQuality "1"]
[TimeControl "3600+30"]

1. Nf3 {[%emt 0:00:25]} d5 {[%emt 0:02:47]} 2. g3 {[%emt 0:00:10]} g6 {[%emt 0:02:39]} 3. Bg2 {[%emt 0:00:05]} Bg7 {[%emt 0:00:23]} 4. c4 {[%emt 0:00:16]} Nf6 {[%emt 0:01:34]} 5. d3 {[%emt 0:00:43]} O-O {[%emt 0:03:42]} 6. Nbd2 {[%emt 0:00:12]} b6 {[%emt 0:05:58]} 7. Qc2 {[%emt 0:02:17]} Bb7 {[%emt 0:00:35]} 8. b3 {[%emt 0:03:45]} Nbd7 {[%emt 0:05:50]} 9. Bb2 {[%emt 0:00:02]} Re8 {[%emt 0:00:43]} 10. cxd5 {[%emt 0:02:56]} Nxd5 {[%emt 0:05:54]} 11. Bxg7 {[%emt 0:00:08]} Kxg7 {[%emt 0:00:20]} 12. h4 {[%emt 0:03:40]} N5f6 {[%emt 0:02:55]} 13. b4 {[%emt 0:12:33]} e5 {[%emt 0:03:17]} 14. a4 {[%emt 0:01:08]} a5 {[%emt 0:04:59]} 15. b5 {[%emt 0:02:02]} Rc8 {[%emt 0:01:36]} 16. Qb2 {[%emt 0:02:21]} Kg8 {[%emt 0:04:15]} 17. O-O {[%emt 0:04:55]} Rb8 {[%emt 0:11:01]} 18. Rfc1 {[%emt 0:02:57]} e4 {[%emt 0:02:54]} 19. dxe4 {[%emt 0:18:52]} Nxe4 {[%emt 0:00:19]} 20. Nd4 {[%emt 0:02:03]} Nxd2 {[%emt 0:01:42]} 21. Qxd2 {[%emt 0:02:02]} Bxg2 {[%emt 0:03:38]} 22. Kxg2 {[%emt 0:00:03]} Nc5 {[%emt 0:00:17]} 23. e3 {[%emt 0:02:41]} Qd5+ {[%emt 0:00:17]} 24. Kh2 {[%emt 0:00:19]} Rbd8 {[%emt 0:00:34]} 25. Qc2 {[%emt 0:00:29]} Qe4 {[%emt 0:01:50]} 26. Nc6 {[%emt 0:00:47]} Qxc2 {[%emt 0:00:30]} 27. Rxc2 {[%emt 0:00:01]} Rd6 {[%emt 0:00:47]} 28. Nxa5 {[%emt 0:00:53]} bxa5 {[%emt 0:01:06]} 29. Rxc5 {[%emt 0:00:03]} Rd7 {[%emt 0:00:25]} 30. Rac1 {[%emt 0:00:16]} Ree7 {[%emt 0:00:18]} 31. Kg2 {[%emt 0:00:15]} Re4 {[%emt 0:01:49]} 32. R1c4 {[%emt 0:00:45]} Rxc4 {[%emt 0:00:11]} 33. Rxc4 {[%emt 0:00:01]} Kf8 {[%emt 0:00:14]} 34. Rc6 {[%emt 0:00:35]} Ke7 {[%emt 0:01:05]} 35. Ra6 {[%emt 0:00:13]} Rd2 {[%emt 0:00:44]} 36. Rxa5 {[%emt 0:00:12]} Kd6 {[%emt 0:00:18]} 37. Ra6+ {[%emt 0:01:00]} Kd7 {[%emt 0:00:37]} 38. Ra7 {[%emt 0:00:45]} Rb2 {[%emt 0:00:18]} 39. Kf3 {[%emt 0:00:39]} Kd6 {[%emt 0:00:23]} 40. Ra6+ {[%emt 0:01:42]} Kd7 {[%emt 0:00:12]} 41. Rf6 {[%emt 0:00:40]} Ke7 {[%emt 0:00:17]} 42. Rc6 {[%emt 0:00:08]} Kd7 {[%emt 0:00:13]} 43. Rc4 {[%emt 0:00:22]} h6 {[%emt 0:00:28]} 44. g4 {[%emt 0:00:15]} h5 {[%emt 0:01:45]} 45. gxh5 {[%emt 0:00:13]} gxh5 {[%emt 0:00:10]} 46. Rc5 {[%emt 0:01:14]} Rb4 {[%emt 0:00:49]} 47. Rxh5 {[%emt 0:00:13]} Rxa4 {[%emt 0:00:18]} 48. Kg3 {[%emt 0:00:55]} Rc4 {[%emt 0:00:36]} 49. f4 {[%emt 0:00:41]} Re4 {[%emt 0:00:29]} 50. Kf3 {[%emt 0:00:02]} Rb4 {[%emt 0:00:28]} 51. Rc5 {[%emt 0:00:53]} Rb1 {[%emt 0:00:34]} 52. h5 {[%emt 0:00:48]} Rh1 {[%emt 0:00:16]} 53. Kg4 {[%emt 0:00:22]} Re1 {[%emt 0:00:39]} 54. Kf3 {[%emt 0:01:10]} Rh1 {[%emt 0:00:10]} 55. Rg5 {[%emt 0:00:48]} Rh3+ {[%emt 0:00:27]} 56. Ke4 {[%emt 0:00:11]} f6 {[%emt 0:01:05]} 57. Rc5 {[%emt 0:01:21]} Rh4 {[%emt 0:00:28]} 58. Kf3 {[%emt 0:01:20]} Rh3+ {[%emt 0:00:21]} 59. Kf2 {[%emt 0:00:08]} Rh1 {[%emt 0:00:48]} 60. e4 {[%emt 0:00:33]} Rh4 {[%emt 0:00:36]} 61. Kf3 {[%emt 0:00:18]} Kd6 {[%emt 0:00:35]} 62. Rd5+ {[%emt 0:00:27]} Ke6 {[%emt 0:00:18]} 63. Rc5 {[%emt 0:00:28]} Kd7 {[%emt 0:00:09]} 64. e5 {[%emt 0:00:24]} f5 {[%emt 0:00:30]} 65. e6+ {[%emt 0:01:48]} Kxe6 {[%emt 0:00:52]} 66. Rxc7 {[%emt 0:00:24]} Rxh5 {[%emt 0:00:19]} 67. Ke3 {[%emt 0:01:25]} Rh3+ {[%emt 0:00:31]} 68. Kd4 {[%emt 0:00:04]} Rb3 {[%emt 0:00:42]} 69. Rc6+ {[%emt 0:01:12]} Kd7 {[%emt 0:00:10]} 70. Rc5 {[%emt 0:00:15]} Kd6 {[%emt 0:00:39]} 71. Rxf5 {[%emt 0:00:33]} Rb4+ {[%emt 0:00:26]} 72. Ke3 {[%emt 0:00:21]} Rb3+ {[%emt 0:00:32]} 73. Ke4 {[%emt 0:00:02]} Rb4+ {[%emt 0:00:14]} 74. Kf3 {[%emt 0:00:02]} Ke6 {[%emt 0:00:35]} 75. Rh5 {[%emt 0:00:28]} Rb1 {[%emt 0:00:30]} 76. b6 {[%emt 0:00:36]} Rb3+ {[%emt 0:00:49]} 77. Kg4 {[%emt 0:00:12]} Rb1 {[%emt 0:00:34]} 78. Rh6+ {[%emt 0:00:15]} Kf7 {[%emt 0:00:32]} 79. Kg5 {[%emt 0:00:36]} Rg1+ {[%emt 0:00:30]} 80. Kf5 {[%emt 0:00:05]} Rb1 {[%emt 0:00:12]} 81. Rh7+ {[%emt 0:00:55]} Kg8 {[%emt 0:00:19]} 82. Rb7 {[%emt 0:00:09]} Rb4 {[%emt 0:00:26]} 83. Kg6 {[%emt 0:00:38]} Kf8 {[%emt 0:00:33]} 84. f5 {[%emt 0:00:03]} Rb1 {[%emt 0:00:46]} 85. Rb8+ {[%emt 0:02:05]} Ke7 {[%emt 0:00:12]} 86. f6+ {[%emt 0:00:15]} Ke6 {[%emt 0:00:10]} 87. Re8+ {[%emt 0:00:43]} Kd7 {[%emt 0:00:09]} 88. Re7+ {[%emt 0:00:17]} Kd8 {[%emt 0:00:17]} 89. b7 {[%emt 0:00:34]} Rg1+ {[%emt 0:00:22]} 90. Kf7 {[%emt 0:00:15]} Rg7+ {[%emt 0:00:23]} 91. Ke6 {[%emt 0:00:17]} Rxe7+ {[%emt 0:00:19]} 92. fxe7+ {[%emt 0:00:07]} 1-0

[Event "LJ Slovak Open 2022"]
[Site "Liptovsky Jan"]
[Date "2022.06.23"]
[Round "1.21"]
[White "Ropovik, Samuel"]
[Black "Bakalar, Jan"]
[Result "0-1"]
[ECO "B41"]
[WhiteElo "1453"]
[BlackElo "1916"]
[Annotator "NA RC"]
[PlyCount "91"]
[EventDate "2022.06.23"]
[EventType "swiss"]
[EventCountry "SVK"]
[SourceTitle "playchess.com"]
[Source "ChessBase"]
[SourceQuality "1"]
[TimeControl "3600+30"]

1. e4 {[%emt 0:00:04]} c5 {[%emt 0:00:08]} 2. Nf3 {[%emt 0:00:11]} e6 {[%emt 0:00:51]} 3. d4 {[%emt 0:00:06]} cxd4 {[%emt 0:00:06]} 4. Nxd4 {[%emt 0:00:04]} a6 {[%emt 0:00:15]} 5. Qf3 {[%emt 0:01:00]} Nf6 {[%emt 0:01:06]} 6. Nc3 {[%emt 0:01:14]} Qc7 {[%emt 0:01:02]} 7. Qg3 {[%emt 0:02:10]} Qxg3 {[%emt 0:00:25]} 8. hxg3 {[%emt 0:00:03]} Bb4 {[%emt 0:00:39]} 9. f3 {[%emt 0:02:03]} Nc6 {[%emt 0:03:48]} 10. Nxc6 {[%emt 0:00:26]} bxc6 {[%emt 0:00:27]} 11. Bd3 {[%emt 0:01:44]} d5 {[%emt 0:02:53]} 12. Bd2 {[%emt 0:01:23]} Bd6 {[%emt 0:04:28]} 13. Bf4 {[%emt 0:06:49]} e5 {[%emt 0:08:00]} 14. Bg5 {[%emt 0:04:26]} d4 {[%emt 0:00:44]} 15. Ne2 {[%emt 0:01:49]} Nd7 {[%emt 0:03:36]} 16. O-O-O {[%emt 0:06:11]} f6 {[%emt 0:00:26]} 17. Bd2 {[%emt 0:00:33]} c5 {[%emt 0:00:19]} 18. c4 {[%emt 0:03:33]} a5 {[%emt 0:01:54]} 19. b3 {[%emt 0:03:04]} a4 {[%emt 0:00:40]} 20. Kb2 {[%emt 0:03:57]} Nb8 {[%emt 0:01:18]} 21. g4 {[%emt 0:01:42]} h6 {[%emt 0:05:02]} 22. g5 {[%emt 0:04:10]} fxg5 {[%emt 0:00:25]} 23. Bxg5 {[%emt 0:00:21]} Nc6 {[%emt 0:00:32]} 24. Bd2 {[%emt 0:01:35]} Be6 {[%emt 0:00:59]} 25. Ng3 {[%emt 0:03:03]} Kd7 {[%emt 0:02:57]} 26. Nh5 {[%emt 0:01:22]} Rhg8 {[%emt 0:00:51]} 27. g4 {[%emt 0:04:48]} Be7 {[%emt 0:01:33]} 28. Ng3 {[%emt 0:01:26]} Rgb8 {[%emt 0:01:35]} 29. Nf5 {[%emt 0:03:37]} Bf8 {[%emt 0:01:42]} 30. f4 {[%emt 0:02:02]} Rb7 {[%emt 0:06:13]} 31. Rh3 {[%emt 0:02:08]} Rab8 {[%emt 0:00:46]} 32. Be2 {[%emt 0:00:53]} Nb4 {[%emt 0:03:36]} 33. fxe5 {[%emt 0:01:22]} Nc6 {[%emt 0:00:47]} 34. Rf1 {[%emt 0:01:40]} Ra8 {[%emt 0:01:00]} 35. Nh4 {[%emt 0:02:45]} Nxe5 {[%emt 0:00:50]} 36. Rc1 {[%emt 0:02:13]} Rba7 {[%emt 0:02:07]} 37. Kc2 {[%emt 0:02:07]} axb3+ {[%emt 0:03:06]} 38. axb3 {[%emt 0:00:01]} Ra2+ {[%emt 0:00:32]} 39. Kd1 {[%emt 0:00:38]} Nxg4 {[%emt 0:00:17]} 40. Bxg4 {[%emt 0:00:48]} Bxg4+ {[%emt 0:00:08]} 41. Rf3 {[%emt 0:00:55]} Rb2 {[%emt 0:00:43]} 42. Ke2 {[%emt 0:00:32]} Raa2 {[%emt 0:00:53]} 43. Rd1 {[%emt 0:00:30]} Be7 {[%emt 0:00:58]} 44. Nf5 {[%emt 0:00:29]} Rxb3 {[%emt 0:00:48]} 45. Ne3 {[%emt 0:00:32]} Rxe3+ {[%emt 0:00:22]} 46. Kf2 {[%emt 0:00:29]} 0-1

[Event "LJ Slovak Open 2022"]
[Site "Liptovsky Jan"]
[Date "2022.06.23"]
[Round "1.22"]
[White "Spik, Peter"]
[Black "Szaszak, Lukas"]
[Result "1-0"]
[ECO "D03"]
[WhiteElo "1969"]
[BlackElo "1454"]
[Annotator "NA RC"]
[PlyCount "101"]
[EventDate "2022.06.23"]
[EventType "swiss"]
[EventCountry "SVK"]
[SourceTitle "playchess.com"]
[Source "ChessBase"]
[SourceQuality "1"]
[TimeControl "3600+30"]

1. d4 {[%emt 0:00:11]} d5 {[%emt 0:00:14]} 2. Nf3 {[%emt 0:00:07]} Nf6 {[%emt 0:00:32]} 3. Bg5 {[%emt 0:00:24]} Bf5 {[%emt 0:01:14]} 4. Nbd2 {[%emt 0:00:15]} e6 {[%emt 0:00:24]} 5. e3 {[%emt 0:01:18]} a6 {[%emt 0:00:34]} 6. c4 {[%emt 0:00:15]} c5 {[%emt 0:01:26]} 7. cxd5 {[%emt 0:01:26]} Qxd5 {[%emt 0:01:46]} 8. dxc5 {[%emt 0:01:15]} Bxc5 {[%emt 0:00:21]} 9. Rc1 {[%emt 0:00:11]} Nbd7 {[%emt 0:00:53]} 10. Bc4 {[%emt 0:01:34]} Qd6 {[%emt 0:02:12]} 11. Bf4 {[%emt 0:00:34]} e5 {[%emt 0:01:54]} 12. Bg3 {[%emt 0:00:24]} b5 {[%emt 0:00:47]} 13. Be2 {[%emt 0:01:45]} O-O {[%emt 0:00:45]} 14. O-O {[%emt 0:00:12]} Rfe8 {[%emt 0:00:31]} 15. a3 {[%emt 0:02:06]} Qb6 {[%emt 0:01:56]} 16. Nb3 {[%emt 0:00:34]} Rad8 {[%emt 0:01:59]} 17. Qe1 {[%emt 0:03:52]} Bxe3 {[%emt 0:03:39]} 18. Rc3 {[%emt 0:08:29]} Bf4 {[%emt 0:01:39]} 19. Nh4 {[%emt 0:03:11]} Be6 {[%emt 0:02:24]} 20. Bf3 {[%emt 0:06:41]} g5 {[%emt 0:00:58]} 21. Rc6 {[%emt 0:04:09]} Qa7 {[%emt 0:01:10]} 22. Qc3 {[%emt 0:05:10]} Bxb3 {[%emt 0:01:48]} 23. Qxb3 {[%emt 0:01:24]} Bxg3 {[%emt 0:01:17]} 24. Nf5 {[%emt 0:01:39]} Bxh2+ {[%emt 0:02:41]} 25. Kxh2 {[%emt 0:00:50]} Rf8 {[%emt 0:01:02]} 26. Qc2 {[%emt 0:01:01]} Qb8 {[%emt 0:03:45]} 27. Kg1 {[%emt 0:01:06]} Kh8 {[%emt 0:00:16]} 28. Qc1 {[%emt 0:02:39]} e4 {[%emt 0:01:51]} 29. Be2 {[%emt 0:02:58]} Qf4 {[%emt 0:02:37]} 30. Qxf4 {[%emt 0:01:13]} gxf4 {[%emt 0:00:09]} 31. Rxa6 {[%emt 0:00:01]} Rb8 {[%emt 0:01:19]} 32. Rd1 {[%emt 0:00:49]} Rfc8 {[%emt 0:00:43]} 33. Nd6 {[%emt 0:00:31]} Rc2 {[%emt 0:08:02]} 34. Bxb5 {[%emt 0:00:12]} Ne5 {[%emt 0:03:31]} 35. b4 {[%emt 0:04:55]} Kg8 {[%emt 0:03:22]} 36. Re1 {[%emt 0:00:32]} Neg4 {[%emt 0:01:21]} 37. Be2 {[%emt 0:01:05]} f3 {[%emt 0:02:47]} 38. gxf3 {[%emt 0:00:28]} exf3 {[%emt 0:00:38]} 39. Bxf3 {[%emt 0:00:22]} Nxf2 {[%emt 0:00:54]} 40. Re2 {[%emt 0:01:18]} Nh3+ {[%emt 0:00:55]} 41. Kh2 {[%emt 0:00:52]} Rxe2+ {[%emt 0:00:11]} 42. Bxe2 {[%emt 0:00:08]} Nf4 {[%emt 0:00:22]} 43. Bf3 {[%emt 0:00:11]} Nd7 {[%emt 0:02:26]} 44. Kg3 {[%emt 0:02:53]} Ne6 {[%emt 0:01:22]} 45. Bd5 {[%emt 0:01:07]} Kf8 {[%emt 0:03:19]} 46. Bxe6 {[%emt 0:02:14]} fxe6 {[%emt 0:00:04]} 47. Ne4 {[%emt 0:01:02]} Ke7 {[%emt 0:00:19]} 48. Ra7 {[%emt 0:00:27]} e5 {[%emt 0:04:49]} 49. Nc5 {[%emt 0:01:36]} Rd8 {[%emt 0:00:24]} 50. Kf3 {[%emt 0:00:29]} Kd6 {[%emt 0:00:44]} 51. Nb7+ {[%emt 0:00:12]} 1-0

[Event "LJ Slovak Open 2022"]
[Site "Liptovsky Jan"]
[Date "2022.06.23"]
[Round "1.23"]
[White "Vastik, Tomas"]
[Black "Kolesar, Peter"]
[Result "0-1"]
[ECO "B50"]
[WhiteElo "1457"]
[BlackElo "1969"]
[Annotator "NA RC"]
[PlyCount "56"]
[EventDate "2022.06.23"]
[EventType "swiss"]
[EventCountry "SVK"]
[SourceTitle "playchess.com"]
[Source "ChessBase"]
[SourceQuality "1"]
[TimeControl "3600+30"]

1. e4 {[%emt 0:00:07]} c5 {[%emt 0:00:19]} 2. Nf3 {[%emt 0:00:09]} d6 {[%emt 0:00:39]} 3. Nc3 {[%emt 0:00:36]} Nf6 {[%emt 0:00:28]} 4. Bc4 {[%emt 0:01:07]} Nc6 {[%emt 0:02:56]} 5. h3 {[%emt 0:00:50]} e6 {[%emt 0:01:19]} 6. a3 {[%emt 0:01:21]} a6 {[%emt 0:01:18]} 7. d3 {[%emt 0:00:31]} Be7 {[%emt 0:05:17]} 8. O-O {[%emt 0:00:37]} O-O {[%emt 0:00:48]} 9. Re1 {[%emt 0:00:16]} d5 {[%emt 0:07:27]} 10. Ba2 {[%emt 0:01:16]} d4 {[%emt 0:00:42]} 11. Ne2 {[%emt 0:00:26]} e5 {[%emt 0:00:36]} 12. Ng3 {[%emt 0:02:21]} Qd6 {[%emt 0:02:59]} 13. Qd2 {[%emt 0:04:32]} Ne8 {[%emt 0:06:02]} 14. Qe2 {[%emt 0:06:51]} Bf6 {[%emt 0:00:55]} 15. Ng5 {[%emt 0:03:23]} Bxg5 {[%emt 0:09:31]} 16. Bxg5 {[%emt 0:00:43]} Qg6 {[%emt 0:02:34]} 17. Qh5 {[%emt 0:02:28]} Nc7 {[%emt 0:00:27]} 18. Qxg6 {[%emt 0:01:15]} hxg6 {[%emt 0:00:01]} 19. f4 {[%emt 0:01:36]} Ne6 {[%emt 0:03:20]} 20. Bxe6 {[%emt 0:00:47]} Bxe6 {[%emt 0:00:02]} 21. fxe5 {[%emt 0:01:48]} Nxe5 {[%emt 0:00:26]} 22. Bf4 {[%emt 0:00:33]} Nd7 {[%emt 0:00:46]} 23. b3 {[%emt 0:02:23]} b5 {[%emt 0:01:23]} 24. Red1 {[%emt 0:03:17]} Rfc8 {[%emt 0:01:13]} 25. Ne2 {[%emt 0:04:43]} Nb8 {[%emt 0:09:36]} 26. Rab1 {[%emt 0:02:41]} Nc6 {[%emt 0:00:20]} 27. Bd6 {[%emt 0:01:13]} Nd8 {[%emt 0:03:53]} 28. Rb2 {[%emt 0:01:55]} Rc6 {[%emt 0:01:09]} 0-1

[Event "LJ Slovak Open 2022"]
[Site "Liptovsky Jan"]
[Date "2022.06.23"]
[Round "1.24"]
[White "Podjavorinsky, Michal"]
[Black "Szabo, Marian"]
[Result "1-0"]
[ECO "B02"]
[WhiteElo "1941"]
[BlackElo "1467"]
[Annotator "NA RC"]
[PlyCount "39"]
[EventDate "2022.06.23"]
[EventType "swiss"]
[EventCountry "SVK"]
[SourceTitle "playchess.com"]
[Source "ChessBase"]
[SourceQuality "1"]
[TimeControl "3600+30"]

1. e4 {[%emt 0:00:05]} e6 {[%emt 0:00:13]} 2. Nc3 {[%emt 0:00:07]} Nf6 {[%emt 0:00:34]} 3. e5 {[%emt 0:01:32]} Nd5 {[%emt 0:00:54]} 4. Nxd5 {[%emt 0:00:30]} exd5 {[%emt 0:00:09]} 5. Qf3 {[%emt 0:00:31]} c6 {[%emt 0:00:30]} 6. d4 {[%emt 0:00:54]} d6 {[%emt 0:00:09]} 7. Bf4 {[%emt 0:00:49]} dxe5 {[%emt 0:00:28]} 8. Bxe5 {[%emt 0:00:53]} Be6 {[%emt 0:00:34]} 9. Qg3 {[%emt 0:02:06]} f6 {[%emt 0:01:55]} 10. Bc7 {[%emt 0:01:01]} Qc8 {[%emt 0:01:02]} 11. O-O-O {[%emt 0:01:59]} b6 {[%emt 0:02:02]} 12. Re1 {[%emt 0:02:01]} Kf7 {[%emt 0:09:13]} 13. Nf3 {[%emt 0:03:28]} Be7 {[%emt 0:03:15]} 14. Bd3 {[%emt 0:01:27]} Bf5 {[%emt 0:01:40]} 15. Bxb8 {[%emt 0:10:33]} Bxd3 {[%emt 0:00:50]} 16. Rxe7+ {[%emt 0:02:17]} Kxe7 {[%emt 0:01:13]} 17. Qxg7+ {[%emt 0:00:24]} Ke6 {[%emt 0:00:42]} 18. cxd3 {[%emt 0:02:55]} Qxb8 {[%emt 0:05:13]} 19. Re1+ {[%emt 0:00:21]} Kd6 {[%emt 0:03:15]} 20. Qe7# {[%emt 0:00:10]} 1-0

[Event "LJ Slovak Open 2022"]
[Site "Liptovsky Jan"]
[Date "2022.06.23"]
[Round "1.25"]
[White "Lacko, Stanislav"]
[Black "Elias, David"]
[Result "0-1"]
[ECO "B62"]
[WhiteElo "1462"]
[BlackElo "1901"]
[Annotator "NA RC"]
[PlyCount "66"]
[EventDate "2022.06.23"]
[EventType "swiss"]
[EventCountry "SVK"]
[SourceTitle "playchess.com"]
[Source "ChessBase"]
[SourceQuality "1"]
[TimeControl "3600+30"]

1. e4 {[%emt 0:00:07]} c5 {[%emt 0:00:08]} 2. Nf3 {[%emt 0:00:07]} d6 {[%emt 0:00:28]} 3. d4 {[%emt 0:01:14]} cxd4 {[%emt 0:00:01]} 4. Nxd4 {[%emt 0:00:14]} Nf6 {[%emt 0:00:08]} 5. Nc3 {[%emt 0:00:28]} Nc6 {[%emt 0:01:16]} 6. Bg5 {[%emt 0:02:55]} e6 {[%emt 0:00:12]} 7. f4 {[%emt 0:01:40]} Be7 {[%emt 0:04:54]} 8. Bb5 {[%emt 0:03:03]} Bd7 {[%emt 0:05:10]} 9. Qd2 {[%emt 0:08:23]} h6 {[%emt 0:06:04]} 10. Bxc6 {[%emt 0:06:10]} bxc6 {[%emt 0:02:34]} 11. Bh4 {[%emt 0:06:07]} Rb8 {[%emt 0:02:36]} 12. Nb3 {[%emt 0:02:25]} O-O {[%emt 0:08:27]} 13. Bxf6 {[%emt 0:05:14]} gxf6 {[%emt 0:00:42]} 14. f5 {[%emt 0:02:37]} Kh7 {[%emt 0:00:58]} 15. g4 {[%emt 0:01:17]} Rg8 {[%emt 0:01:27]} 16. h3 {[%emt 0:00:49]} c5 {[%emt 0:05:54]} 17. O-O-O {[%emt 0:02:30]} Qb6 {[%emt 0:04:52]} 18. Qd3 {[%emt 0:01:25]} Rgc8 {[%emt 0:02:09]} 19. Qc4 {[%emt 0:01:19]} a5 {[%emt 0:02:33]} 20. a4 {[%emt 0:01:33]} Qb4 {[%emt 0:00:45]} 21. Qxb4 {[%emt 0:00:43]} axb4 {[%emt 0:02:54]} 22. Ne2 {[%emt 0:01:21]} Bxa4 {[%emt 0:00:28]} 23. Nd2 {[%emt 0:00:34]} Bc6 {[%emt 0:02:30]} 24. Ng3 {[%emt 0:01:21]} d5 {[%emt 0:01:12]} 25. Rhe1 {[%emt 0:01:00]} Bd6 {[%emt 0:01:55]} 26. Nh5 {[%emt 0:00:51]} Be5 {[%emt 0:00:37]} 27. exd5 {[%emt 0:01:05]} Bxd5 {[%emt 0:00:35]} 28. Ne4 {[%emt 0:01:46]} Bxe4 {[%emt 0:01:06]} 29. Rxe4 {[%emt 0:00:09]} Rb7 {[%emt 0:00:30]} 30. Re3 {[%emt 0:01:22]} Ra8 {[%emt 0:01:09]} 31. Ng3 {[%emt 0:01:41]} Ra1+ {[%emt 0:00:13]} 32. Kd2 {[%emt 0:00:18]} Rd7+ {[%emt 0:00:08]} 33. Rd3 {[%emt 0:00:15]} Rxd1+ {[%emt 0:00:13]} 0-1

[Event "LJ Slovak Open 2022"]
[Site "Liptovsky Jan"]
[Date "2022.06.23"]
[Round "1.26"]
[White "Korenova, Simona"]
[Black "Pisarcik, Richard"]
[Result "1-0"]
[ECO "A29"]
[WhiteElo "1895"]
[BlackElo "1343"]
[Annotator "NA RC"]
[PlyCount "43"]
[EventDate "2022.06.23"]
[EventType "swiss"]
[EventCountry "SVK"]
[SourceTitle "playchess.com"]
[Source "ChessBase"]
[SourceQuality "1"]
[TimeControl "3600+30"]

1. c4 {[%emt 0:00:07]} Nf6 {[%emt 0:00:26]} 2. Nc3 {[%emt 0:00:19]} e5 {[%emt 0:00:16]} 3. g3 {[%emt 0:00:08]} d5 {[%emt 0:01:30]} 4. cxd5 {[%emt 0:01:04]} Nxd5 {[%emt 0:01:32]} 5. Bg2 {[%emt 0:00:07]} Be6 {[%emt 0:00:38]} 6. Nf3 {[%emt 0:08:18]} Nc6 {[%emt 0:01:29]} 7. O-O {[%emt 0:01:15]} Bd6 {[%emt 0:00:30]} 8. d4 {[%emt 0:02:56]} Nxc3 {[%emt 0:02:20]} 9. bxc3 {[%emt 0:00:13]} exd4 {[%emt 0:00:38]} 10. cxd4 {[%emt 0:00:32]} Ne7 {[%emt 0:00:26]} 11. e4 {[%emt 0:01:28]} Bb4 {[%emt 0:01:26]} 12. Qa4+ {[%emt 0:01:08]} Nc6 {[%emt 0:00:45]} 13. d5 {[%emt 0:01:18]} Bxd5 {[%emt 0:00:20]} 14. exd5 {[%emt 0:00:31]} Qxd5 {[%emt 0:00:18]} 15. Ng5 {[%emt 0:08:02]} Qd6 {[%emt 0:01:16]} 16. Bf4 {[%emt 0:01:34]} Qd4 {[%emt 0:02:00]} 17. Bxc6+ {[%emt 0:00:58]} bxc6 {[%emt 0:00:14]} 18. Qxc6+ {[%emt 0:00:16]} Ke7 {[%emt 0:00:17]} 19. Qxc7+ {[%emt 0:01:02]} Ke8 {[%emt 0:02:49]} 20. Qxf7+ {[%emt 0:01:06]} Kd8 {[%emt 0:01:20]} 21. Ne6+ {[%emt 0:00:06]} Kc8 {[%emt 0:00:37]} 22. Qc7# {[%emt 0:00:07]} 1-0